bitfinex-derivatives/quotes_SOLF0:USTF0_20250703
["timestamp","ask_amount","ask_price","bid_price","bid_amount"]
[1751531627409,6.4194,155.73,155.71,235.7598]
[1751531627906,6.4189,155.74,155.71,235.7598]
[1751531628109,9.60705439,155.79,155.71,229.34]
[1751531628310,5.97802188,155.79,155.72,3.62903251]
[1751531628514,6.4173,155.78,155.74,6.4184]
[1751531628716,5.97802188,155.8,155.75,185.48]
[1751531629110,6.4175,155.77,155.75,185.48]
[1751531629615,6.4175,155.77,155.75,191.8983]
[1751531629916,6.4175,155.77,155.75,185.48]
[1751531630514,6.4179,155.76,155.75,185.48]
[1751531631012,3.62903251,155.79,155.75,185.48]
[1751531631415,6.4178,155.77,155.75,185.48]
[1751531632015,6.4179,155.76,155.75,185.48]
[1751531635019,93.68256614,155.81,155.75,185.48]
[1751531635215,93.68256614,155.81,155.76,43.96]
[1751531635517,87.69016506,155.81,155.76,43.96]
[1751531636519,6.4173,155.78,155.76,43.96]
[1751531640510,6.4173,155.78,155.76,50.3778]
[1751531640915,6.4173,155.78,155.76,43.96]
[1751531641420,6.4175,155.77,155.76,43.96]
[1751531641721,87.69016506,155.81,155.76,43.96]
[1751531642518,5.23055203,155.8,155.76,43.96]
[1751531642715,5.23055203,155.79,155.76,43.96]
[1751531642919,5.23055203,155.78,155.76,43.96]
[1751531643119,87.69016506,155.81,155.76,43.96]
[1751531643319,5.23055203,155.8,155.76,43.96]
[1751531643527,6.4174,155.78,155.76,43.96]
[1751531643918,87.69016506,155.81,155.76,43.96]
[1751531644118,5.23107093,155.8,155.76,43.96]
[1751531644323,6.4175,155.77,155.76,43.96]
[1751531644526,87.69016506,155.81,155.76,50.3779]
[1751531644719,5.23175733,155.8,155.76,43.96]
[1751531644919,6.4174,155.78,155.76,43.96]
[1751531647231,6.4175,155.77,155.76,43.96]
[1751531652933,6.4175,155.77,155.76,229.18]
[1751531655332,6.4175,155.77,155.76,43.96]
[1751531655531,6.4175,155.77,155.76,229.18]
[1751531655928,6.4175,155.77,155.76,43.96]
[1751531656133,3.62903251,155.77,155.74,185.22]
[1751531656431,3.62903251,155.77,155.72,43.94]
[1751531656729,6.419,155.74,155.72,229.22]
[1751531657833,6.419,155.74,155.72,43.94]
[1751531658034,6.419,155.74,155.73,185.28]
[1751531658236,6.4192,155.73,155.72,229.2]
[1751531661635,6.4192,155.73,155.72,229.18]
[1751531661931,6.4192,155.73,155.72,43.94]
[1751531663536,6.4192,155.73,155.72,229.2]
[1751531664237,6.4192,155.73,155.72,43.94]
[1751531664439,6.4192,155.73,155.72,229.2]
[1751531664737,3.62903251,155.74,155.68,50.361]
[1751531664738,6.4202,155.71,155.68,50.361]
[1751531664931,6.4202,155.71,155.69,185.28]
[1751531665534,3.62903251,155.72,155.68,43.94]
[1751531665837,3.62903251,155.72,155.69,185.26]
[1751531666225,6.4208,155.69,155.68,43.94]
[1751531667332,6.4206,155.7,155.68,43.94]
[1751531668437,6.4208,155.69,155.68,43.94]
[1751531672336,5.99240108,155.75,155.68,43.94]
[1751531672641,3.62903251,155.74,155.68,43.94]
[1751531672838,6.4203,155.71,155.68,50.361]
[1751531673740,6.4203,155.71,155.69,185.28]
[1751531674041,6.4203,155.71,155.68,50.361]
[1751531674240,6.4203,155.71,155.69,185.28]
[1751531674638,6.4204,155.7,155.69,185.28]
[1751531680042,3.62903251,155.71,155.68,43.94]
[1751531680240,6.4208,155.69,155.68,229.24]
[1751531682748,6.4205,155.7,155.68,235.6612]
[1751531684650,6.4205,155.7,155.68,229.24]
[1751531686850,6.4208,155.69,155.68,229.24]
[1751531687046,3.62903251,155.72,155.68,229.24]
[1751531687352,3.62903251,155.72,155.68,235.6611]
[1751531687752,3.62903251,155.73,155.68,235.6611]
[1751531689059,6.4203,155.71,155.68,235.6611]
[1751531691252,6.4208,155.69,155.68,229.24]
[1751531696371,5.99240108,155.75,155.68,229.24]
[1751531696568,3.62903251,155.75,155.68,232.86903251]
[1751531696960,3.62903251,155.75,155.69,6.4207]
[1751531697160,3.62903251,155.75,155.7,185.3]
[1751531697360,3.62903251,155.73,155.7,185.3]
[1751531697561,6.42,155.71,155.7,185.3]
[1751531698269,6.4197,155.72,155.7,185.3]
[1751531699268,6.4197,155.72,155.7,191.7204]
[1751531701268,6.4197,155.72,155.7,185.3]
[1751531701961,6.4197,155.72,155.7,191.7203]
[1751531702164,6.4193,155.73,155.7,191.7203]
[1751531704165,5.99240108,155.76,155.7,185.3]
[1751531704356,96.88949361,155.77,155.7,188.92903251]
[1751531704357,3.62903251,155.77,155.7,188.92903251]
[1751531704767,6.4186,155.75,155.72,6.4195]
[1751531704965,6.4186,155.75,155.73,185.28]
[1751531706268,3.62903251,155.75,155.68,43.94]
[1751531706474,3.62903251,155.73,155.69,185.28]
[1751531706868,6.4199,155.72,155.69,6.4206]
[1751531707069,6.4199,155.72,155.7,185.28]
[1751531707465,6.4199,155.72,155.69,6.4206]
[1751531707667,6.4199,155.72,155.7,185.28]
[1751531707877,6.42,155.71,155.7,185.28]
[1751531709073,3.62903251,155.73,155.68,43.94]
[1751531709273,3.62903251,155.71,155.69,185.26]
[1751531709466,3.62903251,155.71,155.68,229.2]
[1751531709874,6.4208,155.69,155.68,229.2]
[1751531712276,6.4207,155.7,155.68,229.22]
[1751531713577,6.4207,155.7,155.68,235.6412]
[1751531714076,3.62903251,155.74,155.69,6.4208]
[1751531714272,5.99240108,155.75,155.7,185.28]
[1751531714578,3.62903251,155.75,155.7,185.28]
[1751531714983,9.62143359,155.75,155.7,185.28]
[1751531716071,6.4199,155.72,155.7,185.28]
[1751531716878,6.42,155.71,155.7,185.28]
[1751531718281,6.4197,155.72,155.7,185.28]
[1751531719378,6.4197,155.72,155.69,6.4206]
[1751531719578,6.4197,155.72,155.7,191.6803]
[1751531720582,6.4197,155.72,155.7,185.26]
[1751531722179,6.42,155.71,155.7,185.26]
[1751531722378,3.62903251,155.74,155.7,185.26]
[1751531722773,6.4208,155.7,155.68,43.94]
[1751531722984,6.4208,155.7,155.69,185.26]
[1751531724385,6.4208,155.7,155.68,43.94]
[1751531724581,6.4208,155.7,155.69,185.26]
[1751531726286,6.4202,155.71,155.69,185.26]
[1751531726489,9.62143359,155.75,155.69,185.26]
[1751531726691,3.62903251,155.75,155.69,185.26]
[1751531726893,3.62903251,155.75,155.69,191.6806]
[1751531726894,6.4198,155.72,155.69,191.6806]
[1751531728092,6.4201,155.71,155.69,185.26]
[1751531730898,6.42,155.71,155.7,185.26]
[1751531731794,3.62903251,155.74,155.7,185.26]
[1751531733192,5.99240108,155.75,155.68,43.94]
[1751531733193,3.62903251,155.72,155.68,43.94]
[1751531733397,3.62903251,155.72,155.69,185.26]
[1751531733599,3.62903251,155.72,155.68,43.94]
[1751531733898,3.62903251,155.72,155.68,229.2]
[1751531734099,6.4208,155.69,155.68,229.2]
[1751531736207,6.4208,155.69,155.68,43.94]
[1751531736397,6.4208,155.69,155.68,229.18]
[1751531736597,6.4208,155.69,155.68,43.94]
[1751531738300,6.4217,155.67,155.65,6.4223]
[1751531738600,6.4217,155.67,155.66,185.26]
[1751531738805,6.4224,155.66,155.64,598.38]
[1751531738996,6.4224,155.66,155.64,783.64]
[1751531740601,6.4224,155.66,155.65,185.26]
[1751531741896,6.4224,155.66,155.64,598.38]
[1751531742102,6.4224,155.66,155.65,185.26]
[1751531742595,6.4224,155.66,155.64,598.38]
[1751531742797,6.4224,155.66,155.65,185.28]
[1751531745603,6.4224,155.66,155.64,43.92]
[1751531745802,6.4224,155.66,155.65,185.28]
[1751531748207,3.62903251,155.7,155.65,191.7022]
[1751531748703,6.4212,155.68,155.65,185.28]
[1751531749602,6.4212,155.68,155.66,6.4221]
[1751531749803,6.4212,155.68,155.67,185.28]
[1751531751309,6.4212,155.68,155.65,6.4222]
[1751531751507,6.4212,155.68,155.66,185.28]
[1751531752807,6.4212,155.68,155.66,191.702]
[1751531756810,6.4216,155.67,155.66,185.28]
[1751531757009,3.62903251,155.68,155.64,43.92]
[1751531757212,3.62903251,155.66,155.6,43.94]
[1751531757519,3.62903251,155.62,155.6,43.94]
[1751531757908,6.4241,155.61,155.6,43.94]
[1751531758306,3.62903251,155.63,155.59,185.28]
[1751531758510,6.4238,155.62,155.59,185.28]
[1751531758714,3.62903251,155.63,155.59,185.28]
[1751531759109,6.4243,155.61,155.59,185.28]
[1751531761009,2.2104,155.65,155.59,185.28]
[1751531761214,3.62903251,155.66,155.59,188.90903251]
[1751531762109,6.4227,155.65,155.62,6.4237]
[1751531762306,3.62903251,155.68,155.62,185.3]
[1751531762503,47.56903251,155.7,155.63,3.62903251]
[1751531762711,3.62903251,155.7,155.63,3.62903251]
[1751531763009,3.62903251,155.7,155.64,6.4226]
[1751531763414,6.422,155.67,155.64,6.4226]
[1751531764616,3.62903251,155.7,155.62,185.3]
[1751531765717,82.94327616,155.73,155.62,185.3]
[1751531765917,3.62903251,155.69,155.62,185.3]
[1751531766422,6.4221,155.66,155.63,6.423]
[1751531766717,6.4221,155.66,155.62,185.3]
[1751531767121,3.62903251,155.69,155.63,3.62903251]
[1751531767822,6.4223,155.66,155.63,3.62903251]
[1751531768622,6.4218,155.67,155.63,3.62903251]
[1751531768820,3.62903251,155.69,155.63,3.62903251]
[1751531769221,6.4219,155.67,155.64,6.4226]
[1751531770821,6.4209,155.69,155.65,3.62903251]
[1751531771221,6.4209,155.69,155.66,229.2]
[1751531772523,6.4209,155.69,155.67,6.4215]
[1751531773230,6.4205,155.7,155.67,6.4215]
[1751531774833,6.421,155.69,155.67,6.4215]
[1751531775229,86.57230867,155.73,155.66,229.2]
[1751531775431,6.4215,155.68,155.66,229.2]
[1751531775928,6.4215,155.68,155.66,235.6218]
[1751531776228,86.57230867,155.73,155.66,235.6218]
[1751531776229,6.421,155.69,155.66,235.6218]
[1751531777335,6.4213,155.68,155.66,235.6218]
[1751531778538,6.421,155.69,155.66,235.6218]
[1751531778838,6.421,155.69,155.67,6.4216]
[1751531779034,6.421,155.69,155.66,229.2]
[1751531779440,6.421,155.69,155.66,235.6219]
[1751531780240,92.5670217,155.73,155.66,235.6219]
[1751531780635,3.62903251,155.71,155.66,235.6219]
[1751531780842,5.99471303,155.74,155.67,3.62903251]
[1751531781640,6.4196,155.72,155.69,6.4206]
[1751531781839,5.99471303,155.74,155.7,185.24]
[1751531782040,9.62374554,155.76,155.7,185.24]
[1751531782237,6.4194,155.73,155.7,191.6601]
[1751531785243,6.4196,155.72,155.7,191.6601]
[1751531786744,6.4196,155.72,155.7,185.24]
[1751531788947,6.42,155.71,155.7,185.24]
[1751531789147,3.62903251,155.72,155.66,43.92]
[1751531789341,3.62903251,155.7,155.66,229.12]
[1751531789541,5.99471303,155.74,155.66,43.92]
[1751531789744,3.62903251,155.69,155.66,43.92]
[1751531790551,6.4215,155.68,155.66,43.92]
[1751531791551,6.4215,155.68,155.66,50.342]
[1751531792350,5.99471303,155.73,155.66,43.92]
[1751531792351,9.62374554,155.73,155.66,43.92]
[1751531792745,6.4203,155.71,155.68,6.4212]
[1751531793047,6.4203,155.71,155.68,185.22]
[1751531794352,6.4203,155.71,155.68,191.641]
[1751531794956,6.4203,155.71,155.69,6.4207]
[1751531795248,6.4199,155.72,155.69,6.4207]
[1751531796347,6.4199,155.72,155.68,185.22]
[1751531796747,7.96573251,155.75,155.68,185.22]
[1751531796941,7.96573251,155.75,155.69,6.4205]
[1751531797959,6.4199,155.72,155.69,6.4205]
[1751531798450,6.4215,155.68,155.66,43.92]
[1751531799153,10.05003251,155.69,155.66,43.92]
[1751531799352,3.62903251,155.71,155.66,50.3418]
[1751531799552,6.421,155.69,155.66,50.3418]
[1751531800854,6.4213,155.68,155.66,50.3418]
[1751531801349,6.421,155.69,155.67,6.4216]
[1751531802551,6.4206,155.7,155.67,6.4216]
[1751531802753,6.4206,155.7,155.68,6.4212]
[1751531803154,3.62903251,155.73,155.69,185.34]
[1751531803356,9.62374554,155.75,155.69,185.34]
[1751531803552,5.99471303,155.76,155.69,185.34]
[1751531803754,6.4188,155.74,155.71,6.4198]
[1751531803955,9.62374554,155.77,155.71,50.3398]
[1751531804257,6.419,155.74,155.71,50.3398]
[1751531804960,6.4192,155.73,155.71,50.3398]
[1751531805153,5.99471303,155.77,155.68,6.4212]
[1751531805357,3.62903251,155.7,155.67,43.92]
[1751531805660,10.04973251,155.7,155.68,43.92]
[1751531806057,6.4208,155.69,155.68,43.92]
[1751531806462,3.62903251,155.7,155.68,43.92]
[1751531807064,10.04963251,155.7,155.68,43.92]
[1751531807361,10.04963251,155.7,155.68,50.3411]
[1751531809461,10.04963251,155.7,155.68,43.92]
[1751531810463,6.4208,155.69,155.68,43.92]
[1751531811262,10.04963251,155.7,155.68,43.92]
[1751531811667,3.62903251,155.7,155.68,43.92]
[1751531811860,6.4208,155.69,155.68,43.92]
[1751531814269,3.62903251,155.7,155.65,185.66]
[1751531814466,3.62903251,155.67,155.64,229.58]
[1751531814869,6.4225,155.65,155.64,43.9]
[1751531815060,6.4225,155.65,155.64,229.58]
[1751531815874,6.4222,155.66,155.64,229.58]
[1751531816069,6.4222,155.66,155.64,43.9]
[1751531816267,6.4222,155.66,155.64,229.58]
[1751531816773,6.4225,155.65,155.64,229.58]
[1751531818172,10.05153251,155.65,155.64,229.56]
[1751531818372,10.05153251,155.65,155.64,43.9]
[1751531820871,10.05153251,155.65,155.64,229.56]
[1751531821072,10.05153251,155.65,155.64,43.9]
[1751531821271,10.05153251,155.65,155.64,229.56]
[1751531823080,6.4225,155.65,155.64,229.56]
[1751531830282,6.4225,155.65,155.64,229.46]
[1751531835787,6.4225,155.65,155.64,43.9]
[1751531836086,6.4225,155.65,155.64,229.36]
[1751531836885,6.00036568,155.7,155.64,229.36]
[1751531837088,3.62903251,155.69,155.64,229.36]
[1751531837387,10.04963251,155.7,155.67,6.4214]
[1751531837586,10.04963251,155.7,155.68,185.48]
[1751531838781,6.4208,155.69,155.68,185.48]
[1751531841484,6.4216,155.67,155.65,44.04]
[1751531841691,6.4216,155.67,155.66,185.44]
[1751531842493,6.4214,155.68,155.63,565.08863251]
[1751531842688,3.62903251,155.69,155.64,229.48]
[1751531843090,10.05023251,155.69,155.66,6.422]
[1751531843393,10.05023251,155.69,155.67,185.42]
[1751531844494,6.4212,155.69,155.67,185.42]
[1751531844891,6.4212,155.68,155.67,185.42]
[1751531845500,3.62903251,155.68,155.63,559.2949]
[1751531845796,3.62903251,155.68,155.64,229.6]
[1751531845993,3.62903251,155.68,155.64,44.04]
[1751531846198,6.4221,155.66,155.65,185.56]
[1751531846594,6.4218,155.67,155.65,185.56]
[1751531846799,3.62903251,155.68,155.65,185.56]
[1751531847697,6.4221,155.66,155.65,185.56]
[1751531849200,6.4218,155.67,155.65,191.9824]
[1751531851800,6.4218,155.67,155.65,185.56]
[1751531852203,6.4218,155.67,155.64,50.4627]
[1751531852404,6.4218,155.67,155.65,185.48]
[1751531852706,6.4221,155.66,155.65,185.48]
[1751531854607,6.4218,155.67,155.65,185.48]
[1751531855409,6.4218,155.67,155.65,191.9024]
[1751531856306,6.4218,155.67,155.65,6.4224]
[1751531856504,6.4218,155.67,155.66,185.4]
[1751531861409,3.62903251,155.68,155.66,185.4]
[1751531861410,9.62977168,155.7,155.66,185.4]
[1751531861604,3.62903251,155.7,155.66,185.4]
[1751531862512,6.4212,155.69,155.66,191.8218]
[1751531863711,6.4212,155.69,155.67,6.4216]
[1751531864911,3.62903251,155.7,155.68,6.4212]
[1751531865115,131.8413438,155.75,155.69,229.24]
[1751531865116,6.00073917,155.72,155.69,229.24]
[1751531865312,6.00073917,155.73,155.69,185.3]
[1751531865509,6.4204,155.7,155.69,185.3]
[1751531867917,6.4204,155.7,155.69,185.28]
[1751531869219,6.4204,155.7,155.68,6.4212]
[1751531869420,6.4204,155.7,155.69,185.28]
[1751531871822,6.4204,155.7,155.68,6.4212]
[1751531872218,6.4204,155.7,155.69,185.28]
[1751531873717,6.4202,155.71,155.69,185.28]
[1751531873917,6.4202,155.71,155.7,185.28]
[1751531874315,6.4196,155.72,155.7,185.28]
[1751531877128,6.4196,155.72,155.7,191.7004]
[1751531879127,6.4196,155.72,155.7,185.28]
[1751531879428,6.42,155.71,155.7,185.28]
[1751531888336,2.3223805,155.72,155.7,185.28]
[1751531888538,2.3223805,155.73,155.7,185.28]
[1751531889436,6.42,155.71,155.7,185.28]
[1751531890236,8.7423805,155.71,155.7,185.28]
[1751531890836,6.4205,155.7,155.68,6.421]
[1751531891136,6.4205,155.7,155.69,229.16]
[1751531892641,6.4201,155.71,155.69,235.5808]
[1751531892938,2.3223805,155.73,155.69,231.4823805]
[1751531893942,5.99657285,155.75,155.69,231.4823805]
[1751531894241,6.4198,155.72,155.7,6.4203]
[1751531894540,6.4198,155.72,155.7,8.7426805]
[1751531894938,6.4198,155.72,155.7,2.3223805]
[1751531895140,6.42,155.71,155.69,235.5806]
[1751531895335,6.42,155.71,155.69,237.9029805]
[1751531895541,2.3223805,155.73,155.69,237.9029805]
[1751531895943,6.4199,155.72,155.69,237.9029805]
[1751531896348,6.4199,155.72,155.7,6.4204]
[1751531896643,6.4199,155.72,155.71,185.24]
[1751531904348,8.7422805,155.72,155.71,185.24]
[1751531906761,8.7422805,155.72,155.69,8.7429805]
[1751531906960,8.7422805,155.72,155.71,185.22]
[1751531908357,8.7422805,155.72,155.69,8.7429805]
[1751531908561,8.7422805,155.72,155.7,229.14]
[1751531908562,6.4199,155.72,155.7,229.14]
[1751531911463,6.4199,155.72,155.7,235.5603]
[1751531915366,6.4194,155.73,155.7,235.5603]
[1751531916165,8.7417805,155.73,155.7,235.5603]
[1751531917571,6.4196,155.72,155.7,229.14]
[1751531920065,6.42,155.71,155.7,229.14]
[1751531922367,6.42,155.71,155.7,43.92]
[1751531922568,6.42,155.71,155.7,229.12]
[1751531928173,8.7421805,155.72,155.7,235.5404]
[1751531928376,2.3223805,155.73,155.7,229.12]
[1751531929579,6.42,155.71,155.7,229.12]
[1751531939783,8.74260293,155.71,155.7,229.12]
[1751531944582,6.42,155.71,155.7,229.12]
[1751531944785,8.74260293,155.71,155.7,229.12]
[1751531947486,8.74260293,155.71,155.7,229.08]
[1751531949090,6.42,155.71,155.7,229.08]
[1751531949386,8.74260293,155.71,155.7,229.08]
[1751531950983,8.74260293,155.71,155.7,43.92]
[1751531951184,8.74260293,155.71,155.66,8.74440293]
[1751531951185,6.4217,155.67,155.66,43.88]
[1751531951387,6.4217,155.67,155.66,229.04]
[1751531953583,6.4217,155.67,155.66,43.88]
[1751531953886,6.4217,155.67,155.66,229.04]
[1751531956385,8.74400293,155.68,155.66,235.462]
[1751531956888,2.32260293,155.68,155.66,229.04]
[1751531957282,6.4216,155.68,155.66,235.462]
[1751531957988,8.74420293,155.68,155.66,235.462]
[1751531958187,8.74420293,155.68,155.66,229.04]
[1751531958383,6.4216,155.67,155.66,229.04]
[1751531958986,8.74400293,155.68,155.66,43.88]
[1751531959189,8.74400293,155.68,155.66,229.04]
[1751531959784,6.00258214,155.76,155.67,2.32260293]
[1751531960088,8.32518507,155.77,155.74,2.32260293]
[1751531960277,6.4183,155.75,155.73,46.22260293]
[1751531960478,6.4183,155.75,155.74,185.16]
[1751531963987,6.00258214,155.82,155.74,187.48260293]
[1751531964190,2.32260293,155.83,155.8,2.32260293]
[1751531964489,6.00258214,155.84,155.81,185.12]
[1751531964685,6.4163,155.8,155.79,43.88]
[1751531964879,6.4163,155.8,155.79,229.0]
[1751531965688,8.73890293,155.8,155.79,229.0]
[1751531967790,6.4163,155.8,155.79,229.0]
[1751531975499,6.416,155.81,155.79,229.0]
[1751531976797,3.62509052,155.84,155.79,235.4165]
[1751531977999,3.62509052,155.86,155.8,6.4163]
[1751531978201,3.62509052,155.86,155.81,185.02]
[1751531978493,6.4152,155.83,155.81,185.02]
[1751531986395,6.4155,155.82,155.81,185.02]
[1751531986698,3.62509052,155.84,155.8,184.98]
[1751531986898,6.4163,155.81,155.8,184.98]
[1751531987396,5.65449289,155.88,155.8,184.98]
[1751531987397,6.4156,155.82,155.8,184.98]
[1751531989504,6.4159,155.81,155.8,184.98]
[1751531989904,6.4159,155.81,155.8,187.29891598]
[1751531990201,6.4156,155.82,155.8,193.71521598]
[1751531990403,6.4156,155.82,155.8,187.29891598]
[1751531992504,6.4159,155.81,155.8,187.29891598]
[1751531992806,6.4159,155.81,155.8,184.98]
[1751531997903,8.73481598,155.81,155.8,184.98]
[1751531998407,6.4163,155.8,155.79,43.88]
[1751531998607,6.4163,155.8,155.79,228.82]
[1751531999709,6.416,155.81,155.79,228.82]
[1751532000405,6.416,155.81,155.79,235.2367]
[1751532000708,6.416,155.81,155.79,237.55561598]
[1751532001111,6.416,155.81,155.79,228.82]
[1751532001308,6.4163,155.8,155.79,231.13891598]
[1751532001507,8.73521598,155.8,155.79,43.88]
[1751532001710,2.31891598,155.8,155.75,565.39771598]
[1751532001911,6.4174,155.78,155.75,565.39771598]
[1751532002411,6.4174,155.78,155.76,237.51681598]
[1751532002907,6.4174,155.78,155.76,52.57681598]
[1751532003114,6.4169,155.79,155.77,184.94]
[1751532005814,2.31891598,155.82,155.78,2.31891598]
[1751532006114,2.31891598,155.82,155.79,184.94]
[1751532006314,2.31891598,155.81,155.79,184.94]
[1751532006714,6.4163,155.8,155.79,184.94]
[1751532011926,6.4173,155.78,155.76,50.2579]
[1751532012121,6.4173,155.78,155.77,184.94]
[1751532012525,2.31891598,155.79,155.77,184.94]
[1751532012526,8.73581598,155.79,155.77,184.94]
[1751532012830,8.73581598,155.79,155.76,50.2577]
[1751532013022,8.73581598,155.79,155.77,184.94]
[1751532013628,6.4169,155.79,155.77,184.94]
[1751532014628,6.4169,155.79,155.77,191.3575]
[1751532019835,6.4169,155.79,155.77,6.4175]
[1751532020038,6.4169,155.79,155.78,184.94]
[1751532022241,6.4169,155.79,155.78,184.92]
[1751532026136,6.4175,155.77,155.76,43.84]
[1751532026337,2.31891598,155.77,155.7,7.9994884]
[1751532026545,2.31891598,155.73,155.71,43.82]
[1751532026734,8.73831598,155.73,155.71,228.74]
[1751532026930,2.31891598,155.72,155.71,43.82]
[1751532027136,8.73851598,155.72,155.71,43.82]
[1751532027740,6.4196,155.72,155.71,43.82]
[1751532028735,6.4194,155.73,155.71,43.82]
[1751532028937,11.95338922,155.77,155.71,43.82]
[1751532029434,11.95338922,155.77,155.71,50.2396]
[1751532030140,6.419,155.74,155.71,50.2396]
[1751532033343,6.4192,155.73,155.71,43.82]
[1751532034337,6.4192,155.73,155.71,50.2399]
[1751532038547,6.4192,155.73,155.71,43.82]
[1751532040750,6.4192,155.73,155.71,50.2399]
[1751532040950,6.4189,155.74,155.71,43.82]
[1751532041342,6.4189,155.74,155.72,6.4195]
[1751532041652,6.4189,155.74,155.71,43.82]
[1751532041851,6.4192,155.73,155.71,43.82]
[1751532042251,3.62895025,155.77,155.71,43.82]
[1751532043152,6.419,155.74,155.72,6.4196]
[1751532043350,6.419,155.74,155.73,184.96]
[1751532046759,6.4185,155.75,155.73,184.96]
[1751532048556,6.4188,155.74,155.73,184.96]
[1751532060471,8.74019635,155.74,155.73,184.96]
[1751532061366,6.4196,155.72,155.71,228.74]
[1751532063168,6.4196,155.72,155.71,43.82]
[1751532064576,2.32139635,155.75,155.71,46.14139635]
[1751532064779,2.32139635,155.76,155.72,187.24139635]
[1751532065274,6.4192,155.73,155.72,187.24139635]
[1751532065473,6.4192,155.73,155.72,184.92]
[1751532067583,8.74059635,155.73,155.72,184.92]
[1751532067882,6.4192,155.73,155.72,184.92]
[1751532073286,6.4196,155.72,155.71,228.72]
[1751532074689,8.74079635,155.73,155.71,228.72]
[1751532075090,8.74079635,155.73,155.71,43.82]
[1751532075291,8.74079635,155.73,155.72,184.9]
[1751532075990,6.4194,155.73,155.72,184.9]
[1751532076190,8.74079635,155.73,155.72,184.9]
[1751532079696,6.4196,155.72,155.71,43.82]
[1751532079894,6.4196,155.72,155.71,228.72]
[1751532082895,6.4194,155.73,155.71,231.04139635]
[1751532083194,5.99178282,155.76,155.72,2.32139635]
[1751532083395,5.99178282,155.77,155.75,2.32139635]
[1751532083594,8.31317917,155.8,155.76,187.22139635]
[1751532083896,8.31317917,155.8,155.77,2.32139635]
[1751532084093,6.4174,155.78,155.77,2.32139635]
[1751532085497,6.4174,155.78,155.76,231.02139635]
[1751532085988,6.4169,155.79,155.76,237.43909635]
[1751532087300,6.4171,155.78,155.76,237.43909635]
[1751532087796,6.4171,155.78,155.76,235.1177]
[1751532088698,6.4168,155.79,155.77,6.4174]
[1751532088893,6.4168,155.79,155.78,184.86]
[1751532091700,6.4175,155.77,155.76,43.8]
[1751532091903,3.62515587,155.78,155.72,43.8]
[1751532092101,3.62515587,155.75,155.72,43.8]
[1751532092296,3.62515587,155.75,155.72,228.64]
[1751532092597,6.4191,155.74,155.72,228.64]
[1751532094500,6.4191,155.74,155.72,235.0595]
[1751532094701,6.4184,155.75,155.72,235.0595]
[1751532095801,9.62249682,155.78,155.73,6.4191]
[1751532095999,9.62249682,155.78,155.74,184.84]
[1751532096200,3.62515587,155.76,155.72,43.8]
[1751532096402,3.62515587,155.74,155.73,184.84]
[1751532096902,10.04395587,155.74,155.73,184.84]
[1751532097496,6.4192,155.73,155.72,228.64]
[1751532097697,3.62515587,155.74,155.72,228.64]
[1751532098102,10.04425587,155.74,155.72,228.64]
[1751532098902,6.4191,155.74,155.72,228.64]
[1751532099106,3.62515587,155.76,155.72,228.64]
[1751532099107,6.4192,155.73,155.72,228.64]
[1751532099604,6.4192,155.73,155.72,43.8]
[1751532099806,6.4192,155.73,155.72,228.64]